[Event "EYCC Girls U20 2021"]
[Site "Tornelo"]
[Date "2021.10.15"]
[Round "9.3"]
[White "Schulze, Lara"]
[Black "Bucur, Denisa-Andreea"]
[Result "1/2-1/2"]
[ECO "B42"]
[WhiteElo "2250"]
[BlackElo "2049"]
[Annotator "ChessBase"]
[PlyCount "63"]
[EventDate "2021.10.15"]
[EventType "swiss"]
[EventCountry "NET"]
[SourceTitle "playchess.com"]
[Source "ChessBase"]
[SourceQuality "1"]
[TimeControl "5400+30"]

1. e4 {[%emt 0:00:30]} c5 {[%emt 0:00:35]} 2. Nf3 {[%emt 0:00:07]} e6 {[%emt 0:00:10]} 3. d4 {[%emt 0:00:06]} cxd4 {[%emt 0:00:05]} 4. Nxd4 {[%emt 0:00:06]} a6 {[%emt 0:00:07]} 5. Bd3 {[%emt 0:00:13]} Nf6 {[%emt 0:00:14]} 6. O-O {[%emt 0:00:11]} Qc7 {[%emt 0:00:09]} 7. Qe2 {[%emt 0:00:11]} d6 {[%emt 0:00:17]} 8. f4 {[%emt 0:00:14]} Nbd7 {[%emt 0:00:21]} 9. c4 {[%emt 0:00:31]} Be7 {[%emt 0:03:56]} 10. Nc3 {[%emt 0:00:22]} b6 {[%emt 0:00:26]} 11. Be3 {[%emt 0:07:44]} Bb7 {[%emt 0:01:00]} 12. f5 {[%emt 0:07:19]} e5 {[%emt 0:03:16]} 13. Nc2 {[%emt 0:01:55]} Nc5 {[%emt 0:08:41]} 14. Bg5 {[%emt 0:09:55]} Rc8 {[%emt 0:10:40]} 15. Bxf6 {[%emt 0:05:06]} Bxf6 {[%emt 0:00:19]} 16. Ne3 {[%emt 0:00:11]} Nxd3 {[%emt 0:06:06]} 17. Qxd3 {[%emt 0:00:48]} Bg5 {[%emt 0:08:05]} 18. Kh1 {[%emt 0:05:37]} O-O {[%emt 0:06:53]} 19. f6 {[%emt 0:15:06]} Qc5 {[%emt 0:07:28]} 20. fxg7 {[%emt 0:03:25]} Rfd8 {[%emt 0:03:55]} 21. Nf5 {[%emt 0:09:26]} Qxc4 {[%emt 0:16:57]} 22. Qg3 {[%emt 0:02:39]} h6 {[%emt 0:00:37]} 23. h4 {[%emt 0:01:27]} Bf4 {[%emt 0:02:08]} 24. Ne7+ {[%emt 0:02:23]} Kh7 {[%emt 0:00:09]} 25. Qf3 {[%emt 0:01:54]} Qe6 {[%emt 0:04:04]} 26. Nxc8 {[%emt 0:01:10]} Rxc8 {[%emt 0:00:14]} 27. Nd5 {[%emt 0:09:36]} Bxd5 {[%emt 0:01:16]} 28. exd5 {[%emt 0:00:06]} Qg6 {[%emt 0:00:53]} 29. g3 {[%emt 0:11:57]} Qxg3 {[%emt 0:00:34]} 30. Qxg3 {[%emt 0:00:10]} Bxg3 {[%emt 0:00:05]} 31. Rxf7 {[%emt 0:00:09]} Rc2 {[%emt 0:01:05]} 32. Rf3 {[%emt 0:02:39]} 1/2-1/2

[Event "EYCC Girls U20 2021"]
[Site "Tornelo"]
[Date "2021.10.15"]
[Round "9.4"]
[White "Radeva, Viktoria"]
[Black "Sliwicka, Alicja"]
[Result "1/2-1/2"]
[ECO "B59"]
[WhiteElo "2314"]
[BlackElo "2304"]
[Annotator "ChessBase"]
[PlyCount "43"]
[EventDate "2021.10.15"]
[EventType "swiss"]
[EventCountry "NET"]
[SourceTitle "playchess.com"]
[Source "ChessBase"]
[SourceQuality "1"]
[TimeControl "5400+30"]

1. e4 {[%emt 0:00:30]} c5 {[%emt 0:00:35]} 2. Nf3 {[%emt 0:00:07]} Nc6 {[%emt 0:00:05]} 3. d4 {[%emt 0:00:07]} cxd4 {[%emt 0:00:04]} 4. Nxd4 {[%emt 0:00:08]} Nf6 {[%emt 0:00:05]} 5. Nc3 {[%emt 0:00:07]} d6 {[%emt 0:00:03]} 6. Be2 {[%emt 0:00:34]} e5 {[%emt 0:00:05]} 7. Nb3 {[%emt 0:00:06]} Be7 {[%emt 0:00:08]} 8. O-O {[%emt 0:00:06]} O-O {[%emt 0:00:19]} 9. Kh1 {[%emt 0:03:07]} a5 {[%emt 0:00:29]} 10. Be3 {[%emt 0:00:17]} a4 {[%emt 0:08:34]} 11. Nd2 {[%emt 0:00:07]} a3 {[%emt 0:06:15]} 12. bxa3 {[%emt 0:00:18]} d5 {[%emt 0:15:23]} 13. exd5 {[%emt 0:00:56]} Nxd5 {[%emt 0:00:40]} 14. Nxd5 {[%emt 0:01:19]} Qxd5 {[%emt 0:00:05]} 15. Nc4 {[%emt 0:04:34]} Qxd1 {[%emt 0:02:38]} 16. Rfxd1 {[%emt 0:00:57]} Be6 {[%emt 0:03:25]} 17. Rab1 {[%emt 0:06:30]} Ra4 {[%emt 0:20:05]} 18. Nb6 {[%emt 0:29:17]} Rxa3 {[%emt 0:00:18]} 19. Bc4 {[%emt 0:02:23]} Bxc4 {[%emt 0:01:25]} 20. Nxc4 {[%emt 0:00:22]} Rxa2 {[%emt 0:04:44]} 21. Rxb7 {[%emt 0:00:16]} Rxc2 {[%emt 0:02:52]} 22. Nxe5 {[%emt 0:01:07]} 1/2-1/2

[Event "EYCC Girls U20 2021"]
[Site "Tornelo"]
[Date "2021.10.15"]
[Round "9.5"]
[White "Cvitan, Ena"]
[Black "Hereklioglu, Sude"]
[Result "1-0"]
[ECO "A70"]
[WhiteElo "2260"]
[BlackElo "1905"]
[Annotator "ChessBase"]
[PlyCount "85"]
[EventDate "2021.10.15"]
[EventType "swiss"]
[EventCountry "NET"]
[SourceTitle "playchess.com"]
[Source "ChessBase"]
[SourceQuality "1"]
[TimeControl "5400+30"]

1. d4 {[%emt 0:00:30]} Nf6 {[%emt 0:00:39]} 2. c4 {[%emt 0:00:07]} c5 {[%emt 0:00:23]} 3. d5 {[%emt 0:00:57]} e6 {[%emt 0:00:23]} 4. Nc3 {[%emt 0:00:07]} exd5 {[%emt 0:01:22]} 5. cxd5 {[%emt 0:00:07]} d6 {[%emt 0:00:16]} 6. e4 {[%emt 0:00:06]} g6 {[%emt 0:00:37]} 7. h3 {[%emt 0:00:11]} Bg7 {[%emt 0:00:22]} 8. Nf3 {[%emt 0:00:05]} O-O {[%emt 0:00:32]} 9. Bd3 {[%emt 0:00:13]} Re8 {[%emt 0:04:16]} 10. O-O {[%emt 0:00:13]} a6 {[%emt 0:04:59]} 11. a4 {[%emt 0:00:19]} b6 {[%emt 0:00:09]} 12. Bf4 {[%emt 0:00:24]} Qc7 {[%emt 0:12:12]} 13. Re1 {[%emt 0:00:38]} Nbd7 {[%emt 0:00:52]} 14. Qd2 {[%emt 0:02:16]} c4 {[%emt 0:03:50]} 15. Bc2 {[%emt 0:00:24]} Rb8 {[%emt 0:02:07]} 16. Nd4 {[%emt 0:01:23]} Bb7 {[%emt 0:06:01]} 17. Ncb5 {[%emt 0:08:16]} axb5 {[%emt 0:00:53]} 18. Nxb5 {[%emt 0:00:12]} Qd8 {[%emt 0:02:03]} 19. Nxd6 {[%emt 0:00:34]} Ne5 {[%emt 0:11:47]} 20. Nxe8 {[%emt 0:02:09]} Qxe8 {[%emt 0:01:45]} 21. a5 {[%emt 0:05:11]} bxa5 {[%emt 0:12:57]} 22. Rxa5 {[%emt 0:00:52]} Nh5 {[%emt 0:01:39]} 23. Bh2 {[%emt 0:02:28]} c3 {[%emt 0:16:45]} 24. Qxc3 {[%emt 0:01:09]} Rc8 {[%emt 0:00:31]} 25. Qb3 {[%emt 0:02:44]} Nc4 {[%emt 0:01:22]} 26. Rb5 {[%emt 0:02:25]} Nd2 {[%emt 0:08:14]} 27. Qb4 {[%emt 0:02:14]} Rc4 {[%emt 0:02:54]} 28. Qa5 {[%emt 0:07:58]} Rxc2 {[%emt 0:00:32]} 29. Rxb7 {[%emt 0:00:28]} Be5 {[%emt 0:03:17]} 30. d6 {[%emt 0:04:01]} Bxd6 {[%emt 0:01:13]} 31. Bxd6 {[%emt 0:00:26]} Kg7 {[%emt 0:00:33]} 32. Qe5+ {[%emt 0:00:56]} Qxe5 {[%emt 0:00:08]} 33. Bxe5+ {[%emt 0:00:02]} Kf8 {[%emt 0:00:24]} 34. Ra1 {[%emt 0:00:32]} Rc8 {[%emt 0:00:31]} 35. f3 {[%emt 0:01:51]} Re8 {[%emt 0:00:56]} 36. Rb8 {[%emt 0:01:44]} Nc4 {[%emt 0:00:20]} 37. Raa8 {[%emt 0:00:49]} Rxb8 {[%emt 0:00:06]} 38. Bxb8 {[%emt 0:00:20]} Ke7 {[%emt 0:00:24]} 39. b3 {[%emt 0:00:16]} Nb2 {[%emt 0:00:35]} 40. Ra7+ {[%emt 0:00:19]} Ke6 {[%emt 0:00:11]} 41. Ra6+ {[%emt 0:00:24]} Ke7 {[%emt 0:00:13]} 42. g4 {[%emt 0:00:07]} Nf6 {[%emt 0:00:27]} 43. Be5 {[%emt 0:00:09]} 1-0